lending/lending_fUSD_20250719
["ID","MTS","AMOUNT","RATE_DAILY","PERIOD"]
[373301658,1752935440462,-500.0,0.00017918,2]
[373301660,1752935440471,-236.59693244,0.00017929,2]
[373301662,1752935440480,-2863.5062,0.0001793,2]
[373301664,1752935440490,-154.83245859,0.00017947,2]
[373301666,1752935440499,-874.43121618,0.00017986,2]
[373301668,1752935440508,-119657.90920415,0.00018,2]
[373301670,1752935440520,-1138.78406563,0.00018,2]
[373301672,1752935440531,-2820.93081875,0.00018,2]
[373301675,1752935440541,-11668.03687785,0.00018,2]
[373301680,1752935440579,-1191.68995006,0.00018,2]
[373301682,1752935440590,-1238.46665368,0.00018,2]
[373301684,1752935440601,-3489.5487084,0.00018,2]
[373301686,1752935440613,-368.22535625,0.00018,2]
[373301688,1752935440626,-388.5576445,0.00018,2]
[373301865,1752935442476,-2825.99916896,0.00018,2]
[373301868,1752935442488,-1748.12388319,0.00018,2]
[373301879,1752935442589,-334.75925609,0.00018,2]
[373301881,1752935442601,-8824.96074483,0.00018,2]
[373301883,1752935442610,-7142.856,0.00018047,2]
[373301885,1752935442620,-346.92554585,0.00018047,2]
[373301887,1752935442632,-600.0,0.00018047,2]
[373301889,1752935442641,-151.0,0.00018047,2]
[373301891,1752935442651,-151.0,0.00018047,2]
[373301893,1752935442660,-151.0,0.00018047,2]
[373301895,1752935442670,-151.0,0.00018047,2]
[373301897,1752935442679,-151.0,0.00018047,2]
[373301899,1752935442688,-151.0,0.00018047,2]
[373301901,1752935442698,-151.0,0.00018047,2]
[373301903,1752935442708,-151.0,0.00018047,2]
[373301905,1752935442717,-207.4,0.00018047,2]
[373301907,1752935442727,-160.0,0.00018047,2]
[373301908,1752935442736,-500.0,0.00018047,2]
[373301909,1752935442745,-500.0,0.00018047,2]
[373301910,1752935442754,-500.0,0.00018047,2]
[373301911,1752935442763,-500.0,0.00018047,2]
[373301912,1752935442772,-500.0,0.00018047,2]
[373301913,1752935442781,-500.0,0.00018047,2]
[373301914,1752935442789,-500.0,0.00018047,2]
[373301915,1752935442799,-500.0,0.00018047,2]
[373301916,1752935442808,-638.63456824,0.00018047,2]
[373301917,1752935442817,-151.0,0.00018047,2]
[373301919,1752935442826,-13012.55457925,0.00018063,2]
[373301921,1752935442835,-260.0,0.00018075,2]
[373301922,1752935442845,-350.0,0.00018093,2]
[373301923,1752935442854,-938.643029,0.00018241,2]
[373301924,1752935442864,-1499.4301842,0.00018254,2]
[373301925,1752935442879,-229.19293585,0.00018267,2]
[373301926,1752935442889,-168.33,0.00018268,2]
[373301927,1752935442900,-2450.55214245,0.00018306,2]
[373301928,1752935442909,-407.12,0.00018329,2]
[373301929,1752935442920,-13012.55457925,0.00018353,2]
[373301930,1752935442931,-505.0,0.00018377,5]
[373301931,1752935442941,-500.0,0.00018384,2]
[373301933,1752935442951,-315.0,0.00018438,2]
[373301934,1752935442961,-236.59693244,0.00018444,2]
[373301935,1752935442971,-250.0,0.00018455,2]
[373301936,1752935442981,-300.0,0.00018455,2]
[373301937,1752935442990,-420.0,0.00018459,2]
[373301938,1752935443000,-200.0,0.00018495,2]
[373301939,1752935443010,-1100.0,0.000185,6]
[373301940,1752935443019,-250.0,0.00018501,2]
[373301941,1752935443030,-300.0,0.00018501,2]
[373301942,1752935443040,-172.44,0.00018526,2]
[373301943,1752935443049,-150.99,0.00018533,2]
[373301944,1752935443059,-150.99,0.00018533,2]
[373301945,1752935443068,-1680.0,0.00018551,2]
[373301946,1752935443078,-406.0,0.00018567,2]
[373301947,1752935443088,-7407.141672,0.00018595,2]
[373301948,1752935443097,-600.0,0.00018595,2]
[373301949,1752935443106,-151.0,0.00018595,2]
[373301950,1752935443116,-156.587,0.00018595,2]
[373301951,1752935443125,-2099.1768,0.000186,2]
[373301952,1752935443137,-2300.0,0.000186,6]
[373301953,1752935443147,-250.0,0.00018606,2]
[373301954,1752935443157,-300.0,0.00018606,2]
[373301955,1752935443167,-13012.55457925,0.00018644,2]
[373301956,1752935443176,-3400.0,0.000187,6]
[373301957,1752935443185,-1000.0,0.00018763,2]
[373301958,1752935443195,-184.0,0.0001878,2]
[373301959,1752935443204,-168.77,0.00018784,2]
[373301960,1752935443214,-4600.0,0.000188,6]
[373301961,1752935443223,-150.0,0.00018862,2]
[373301962,1752935443232,-34358.1765,0.00018878,2]
[373301963,1752935443242,-1000.0,0.00018878,2]
[373301964,1752935443252,-19107.84929572,0.0001888,2]
[373301965,1752935443261,-900.0,0.000189,4]
[373301966,1752935443271,-5700.0,0.000189,6]
[373301967,1752935443280,-363.66284296,0.000189,2]
[373301968,1752935443290,-363.66284281,0.000189,2]
[373301969,1752935443299,-363.66284281,0.000189,2]
[373301970,1752935443308,-363.66284281,0.000189,2]
[373301971,1752935443318,-363.66284281,0.000189,2]
[373301972,1752935443327,-363.66284281,0.000189,2]
[373301973,1752935443336,-363.66284281,0.000189,2]
[373301974,1752935443346,-363.66284281,0.000189,2]
[373301975,1752935443355,-363.66284281,0.000189,2]
[373301976,1752935443364,-363.66284281,0.000189,2]
[373301977,1752935443373,-363.66284281,0.000189,2]
[373301978,1752935443385,-363.66284281,0.000189,2]
[373301979,1752935443395,-363.66284281,0.000189,2]
[373301980,1752935443404,-363.66284281,0.000189,2]
[373301981,1752935443415,-363.66284281,0.000189,2]
[373301982,1752935443424,-363.66284281,0.000189,2]
[373301983,1752935443434,-363.66284281,0.000189,2]
[373301984,1752935443443,-150.0,0.0001891,2]
[373301985,1752935443452,-2863.5062,0.0001893,2]
[373301986,1752935443462,-13012.55457925,0.00018935,2]
[373301987,1752935443471,-152.763305,0.00018935,2]
[373301988,1752935443481,-363.66284281,0.00018946,2]
[373301989,1752935443491,-229.19293585,0.00018948,2]
[373301990,1752935443500,-236.59693244,0.00018958,2]
[373301991,1752935443518,-2500.0,0.00018967,2]
[373301992,1752935443527,-157.200894,0.00018978,2]
[373301993,1752935443537,-291.56165159,0.00019,2]
[373301994,1752935443546,-2000.0,0.00019,2]
[373301995,1752935443556,-5991.52360095,0.00019,2]
[373301996,1752935443566,-124.63685435,0.00019,2]
[373301997,1752935443579,-2454.03164775,0.00019,2]
[373301998,1752935443588,-545.82099077,0.00019,2]
[373301999,1752935443710,-7454.17900923,0.00019,2]
[373302000,1752935443719,-650.77438815,0.00019,2]
[373302001,1752935443729,-2000.0,0.00019,2]
[373302002,1752935443739,-2000.0,0.00019,2]
[373302003,1752935443748,-407.12,0.00019016,2]
[373302004,1752935443758,-7074.465,0.00019033,2]
[373302005,1752935443767,-308.914,0.00019033,2]
[373302006,1752935443778,-152.071712,0.00019035,2]
[373302007,1752935443787,-1052.8290963,0.00019078,2]
[373302008,1752935443796,-182.45702438,0.00019078,2]
[373302009,1752935443806,-10000.0,0.00019078,2]
[373302010,1752935443815,-73561.8313,0.00019078,2]
[373302011,1752935443824,-5000.0,0.00019078,2]
[373302012,1752935443834,-1000.0,0.00019082,2]
[373302013,1752935443844,-1000.0,0.00019082,2]
[373302014,1752935443853,-1000.0,0.00019082,2]
[373302015,1752935443863,-1000.0,0.00019082,2]
[373302016,1752935443876,-1000.0,0.00019082,2]
[373302017,1752935443886,-1000.0,0.00019082,2]
[373302018,1752935443896,-1000.0,0.00019082,2]
[373302019,1752935443906,-1000.0,0.00019082,2]
[373302020,1752935443915,-1000.0,0.00019082,2]
[373302021,1752935443925,-1000.0,0.00019082,2]
[373302022,1752935443935,-1000.0,0.00019082,2]
[373302023,1752935443945,-1000.0,0.00019082,2]
[373302024,1752935443955,-9.66956139,0.00019082,2]
[373302025,1752935443966,-990.33043861,0.00019082,2]
[373302026,1752935443975,-1000.0,0.00019082,2]
[373302027,1752935443985,-940.9155,0.00019082,2]
[373302028,1752935443994,-19.80406139,0.00019143,2]
[373302029,1752935445497,-363.66284281,0.00019067,2]
[373302030,1752935445507,-1493.91697274,0.00019078,2]
[373302031,1752935445519,-2360.64151915,0.00019078,2]
[373302032,1752935445530,-6145.44150811,0.00019078,2]
[373302033,1752935445539,-475.39777134,0.00019143,2]
[373302034,1752935445731,-262.117176,0.00019143,2]
[373302038,1752935451947,321.47,0.00025191,120]
[373302039,1752935452167,321.47,0.00027481,120]
[373302040,1752935479418,267.0,0.0003,120]
[373302041,1752935512840,500.0,0.0003,120]
[373302049,1752935533757,500.0,0.0003,120]
[373302050,1752935571674,500.0,0.0003,120]
[373302051,1752935598345,500.0,0.0003,120]
[373302059,1752935670564,150.5,0.0002609,120]
[373302060,1752935671032,150.5,0.0002608,120]
[373302061,1752935671578,150.5,0.0002607,120]
[373302062,1752935672122,150.5,0.0002749,120]
[373302063,1752935672626,150.5,0.0002748,120]
[373302064,1752935673834,150.5,0.0002747,120]
[373302065,1752935674338,295.33,0.0002959,120]
[373302067,1752935703227,7214.63545419,0.00015,2]
[373302120,1752935906982,500.0,0.0003,120]
[373302122,1752935921806,257.99,0.00013699,2]
[373302155,1752936051640,222.50808826,0.00023,30]
[373302160,1752936517689,159.98,0.0002642,120]
[373302163,1752936568867,511.0,0.00015638,2]
[373302165,1752936616328,-187.44,0.00016712,2]
[373302166,1752936616350,-183.89010005,0.00016754,2]
[373302167,1752936616373,-300.0,0.00016854,2]
[373302168,1752936616396,-511.0,0.00016871,3]
[373302169,1752936616417,-250.0,0.00017069,2]
[373302170,1752936616439,-173.0,0.000175,2]
[373302171,1752936616463,-159.98,0.00017613,2]
[373302172,1752936616492,-300.0,0.0001762,2]
[373302173,1752936616532,-1200.0,0.0001762,2]
[373302174,1752936616555,-11734.68989995,0.00017621,2]
[373302175,1752936618123,-12165.31010005,0.00017621,2]
[373302176,1752936618149,-200.0,0.00017623,2]
[373302177,1752936618170,-219.49,0.00017662,2]
[373302178,1752936618193,-1000.0,0.00017745,2]
[373302179,1752936618215,-151.0,0.00018,2]
[373302180,1752936618237,-159.950748,0.00018,2]
[373302181,1752936618260,-151.0,0.00018,2]
[373302182,1752936618285,-300.0,0.00018016,2]
[373302183,1752936618308,-653.24915195,0.00018017,2]
[373302184,1752936618497,-361.75084805,0.00018017,2]
[373302185,1752936618520,-7142.856,0.00018047,2]
[373302186,1752936618542,-207.4,0.00018047,2]
[373302187,1752936618563,-276.66707839,0.00018047,2]
[373302188,1752936618585,-456.3,0.00018084,2]
[373302189,1752936618607,-511.0,0.00018103,5]
[373302190,1752936618629,-250.0,0.0001812,2]
[373302191,1752936618650,-165.33,0.00018158,2]
[373302192,1752936618671,-342.0,0.00018164,2]
[373302193,1752936618692,-173.58,0.00018186,2]
[373302194,1752936618714,-200.0,0.00018243,2]
[373302195,1752936618735,-346.92554585,0.00018258,2]
[373302196,1752936618756,-600.0,0.00018258,2]
[373302197,1752936618777,-160.0,0.00018258,2]
[373302198,1752936618798,-150.0,0.0001828,2]
[373302199,1752936618819,-2412.37,0.00018281,2]
[373302200,1752936618841,-250.0,0.00018302,2]
[373302201,1752936618864,-300.0,0.00018302,2]
[373302202,1752936618890,-321.47,0.00018321,2]
[373302203,1752936618912,-345.91,0.00018329,2]
[373302204,1752936618934,-26.44052771,0.00018478,2]
[373302205,1752936619082,-173.55947229,0.00018478,2]
[373302206,1752936619105,-7407.141672,0.00018595,2]
[373302207,1752936619132,-300.0,0.000186,6]
[373302208,1752936619155,-700.0,0.000187,6]
[373302209,1752936619177,-151.0,0.00018764,2]
[373302210,1752936619203,-151.0,0.00018764,2]
[373302211,1752936619224,-151.240327,0.00018764,2]
[373302212,1752936619247,-169.0,0.0001878,2]
[373302213,1752936619270,-1100.0,0.000188,6]
[373302214,1752936619293,-600.0,0.00018806,2]
[373302215,1752936619316,-1400.0,0.000189,6]
[373302216,1752936619337,-1000.0,0.000189,2]
[373302217,1752936619359,-1000.0,0.000189,2]
[373302218,1752936619384,-697.05852871,0.000189,2]
[373302219,1752936620897,-327.94147129,0.000189,2]
[373302220,1752936620919,-14672.05852871,0.00019,2]
[373302221,1752936622304,500.0,0.0003,120]
[373302222,1752936622345,-15000.0,0.00019,2]
[373302231,1752936631672,-327.94147129,0.00019,2]
[373302233,1752936631682,-1388.0,0.00019,2]
[373302235,1752936631692,-6709.05852871,0.00019,2]
[373302236,1752936631729,-2014.89229753,0.00019,2]
[373302237,1752936631740,-2012.03626903,0.00019,2]
[373302238,1752936631749,-1000.0,0.00019,2]
[373302239,1752936631759,-345.91,0.00019016,2]
[373302240,1752936631769,-6901.8463,0.00019025,2]
[373302241,1752936631778,-1000.0,0.00019037,2]
[373302242,1752936631788,-2500.0,0.00019037,2]
[373302243,1752936631797,-2869.34695674,0.00019037,2]
[373302244,1752936631807,-177.44769933,0.00019037,2]
[373302245,1752936631818,-500.0,0.00019041,2]
[373302246,1752936631828,-628.2740257,0.00019073,2]
[373302247,1752936631840,-10930.3396095,0.00019078,2]
[373302248,1752936631852,-629.4760905,0.00019078,2]
[373302249,1752936631862,-1000.0,0.00019078,2]
[373302250,1752936631871,-151.0,0.00019078,2]
[373302251,1752936631882,-151.0,0.00019078,2]
[373302252,1752936631891,-151.0,0.00019078,2]
[373302253,1752936631900,-151.0,0.00019078,2]
[373302254,1752936631909,-589.71890409,0.00019078,2]
[373302255,1752936631920,-312.70603557,0.00019078,2]
[373302256,1752936631930,-157.200894,0.00019078,2]
[373302257,1752936631939,-152.79529062,0.00019078,2]
[373302258,1752936631949,-10000.0,0.00019078,2]
[373302259,1752936631958,-4410.10244967,0.00019078,2]
[373302260,1752936631969,-264.46533945,0.00019078,2]
[373302261,1752936637598,-325.43221088,0.00019078,2]
[373302262,1752936637608,-167.43,0.0001909,2]
[373302263,1752936637617,-10735.98709519,0.0001909,2]
[373302264,1752936637627,-28234.42203333,0.000191,2]
[373302265,1752936637891,-2002.23653014,0.000191,2]
[373302266,1752936637967,-17443.79083964,0.000191,2]
[373302267,1752936637978,-1371.21214746,0.000191,2]
[373302268,1752936638048,-6222.39615934,0.000191,2]
[373302269,1752936638059,-912.75947795,0.000191,2]
[373302270,1752936638071,-2998.37348172,0.000191,2]
[373302271,1752936638082,-2962.55749776,0.000191,2]
[373302272,1752936638093,-2110.01716113,0.000191,2]
[373302273,1752936638104,-2048.003565,0.000191,2]
[373302275,1752936638115,-3158.92017496,0.000191,2]
[373302278,1752936638127,-4184.156181,0.000191,2]
[373302280,1752936638140,-5130.0,0.000191,2]
[373302282,1752936638152,-773.47262882,0.000191,2]
[373302284,1752936638163,-312.69477061,0.000191,2]
[373302286,1752936638174,-960.9202189,0.000191,2]
[373302464,1752936639868,-312.019169,0.00019078,2]
[373302489,1752936640102,-1037.55963099,0.00019078,2]
[373302605,1752936641405,-3650.42120001,0.00019078,2]
[373302607,1752936641415,-25489.06713224,0.000191,2]
[373302609,1752936641425,-2869.34695672,0.00019122,2]
[373302611,1752936641434,-266.21103193,0.00019126,2]
[373302613,1752936641443,-167.43,0.00019127,2]
[373302615,1752936641452,-167.43,0.00019127,2]
[373302617,1752936641461,-655.53,0.00019127,2]
[373302619,1752936641470,-2394.0412053,0.00019137,2]
[373302621,1752936641480,-1362.0947285,0.00019137,2]
[373302623,1752936641489,-65578.8092736,0.00019137,2]
[373302625,1752936641498,-1455.123875,0.00019143,2]
[373302627,1752936641508,-151.0,0.00019143,2]
[373302628,1752936641517,-1909.00413,0.00019143,2]
[373302630,1752936641530,-7681.20591386,0.00019143,2]
[373302632,1752936641540,-5000.0,0.0001915,2]
[373302633,1752936641549,-167.43,0.00019163,2]
[373302635,1752936641559,-186.11707168,0.00019168,2]
[373302637,1752936641569,-167.43,0.00019168,2]
[373302639,1752936641578,-655.53,0.00019168,2]
[373302641,1752936641588,-500.0,0.00019173,2]
[373302643,1752936641597,-500.0,0.00019173,2]
[373302645,1752936641606,-500.61459851,0.00019173,2]
[373302647,1752936641615,-500.0,0.00019173,2]
[373302649,1752936641625,-500.0,0.00019173,2]
[373302651,1752936641635,-500.0,0.00019173,2]
[373302653,1752936641644,-413.30978555,0.00019173,2]
[373302655,1752936641653,-500.0,0.00019173,2]
[373302656,1752936641663,-500.0,0.00019173,2]
[373302658,1752936641672,-540.11587995,0.00019173,2]
[373302660,1752936641681,-500.0,0.00019173,2]
[373302662,1752936641691,-500.0,0.00019173,2]
[373302664,1752936641700,-500.0,0.00019173,2]
[373302666,1752936641709,-502.35566896,0.00019173,2]
[373302668,1752936641718,-500.0,0.00019173,2]
[373302670,1752936641727,-500.0,0.00019173,2]
[373302672,1752936641736,-500.0,0.00019173,2]
[373302674,1752936641745,-500.0,0.00019173,2]
[373302676,1752936641754,-500.0,0.00019173,2]
[373302678,1752936641762,-3222.38,0.00019177,2]
[373302680,1752936641772,-465.29475775,0.00019177,2]
[373302681,1752936641781,-150.0,0.00019177,2]
[373302683,1752936641791,-1040.0,0.00019178,2]
[373302685,1752936641800,-151.0,0.00019178,2]
[373302687,1752936641809,-151.0,0.00019178,2]
[373302689,1752936641819,-151.0,0.00019178,2]
[373302691,1752936641828,-151.238294,0.00019178,2]
[373302693,1752936641838,-152.586145,0.00019178,2]
[373302695,1752936641847,-151.0,0.00019178,2]
[373302697,1752936641856,-151.0,0.00019178,2]
[373302699,1752936641866,-151.0,0.00019178,2]
[373302701,1752936641878,-151.0,0.00019178,2]
[373302703,1752936641889,-151.0,0.00019178,2]
[373302705,1752936641900,-151.0,0.00019178,2]
[373302707,1752936641909,-151.0,0.00019178,2]
[373302709,1752936641918,-1034.461979,0.00019178,2]
[373302711,1752936641928,-166.35591,0.00019178,2]
[373302713,1752936641937,-158.808791,0.00019178,2]
[373302715,1752936641951,-895.615852,0.00019178,2]
[373302717,1752936641964,-1024.417403,0.00019178,2]
[373302719,1752936641977,-165.785028,0.00019178,2]
[373302721,1752936641986,-158.251848,0.00019178,2]
[373302723,1752936641995,-152.637209,0.00019178,2]
[373302725,1752936642004,-151.0,0.00019178,2]
[373302727,1752936642014,-151.0,0.00019178,2]
[373302729,1752936642023,-151.0,0.00019178,2]
[373302731,1752936642032,-151.0,0.00019178,2]
[373302733,1752936642041,-151.0,0.00019178,2]
[373302735,1752936642051,-151.0,0.00019178,2]
[373302737,1752936642060,-151.0,0.00019178,2]
[373302739,1752936642070,-151.0,0.00019178,2]
[373302741,1752936642080,-151.0,0.00019178,2]
[373302743,1752936642089,-151.0,0.00019178,2]
[373302745,1752936642098,-151.0,0.00019178,2]
[373302747,1752936642108,-151.0,0.00019178,2]
[373302749,1752936642117,-151.0,0.00019178,2]
[373302751,1752936642127,-151.0,0.00019178,2]
[373302753,1752936642138,-151.0,0.00019178,2]
[373302754,1752936642147,-151.0,0.00019178,2]
[373302757,1752936642162,-290.785063,0.00019178,2]
[373302759,1752936642171,-151.0,0.00019178,2]
[373302760,1752936642181,-151.0,0.00019178,2]
[373302763,1752936642193,-151.0,0.00019178,2]
[373302765,1752936642206,-151.0,0.00019178,2]
[373302767,1752936642217,-151.0,0.00019178,2]
[373302768,1752936642226,-151.0,0.00019178,2]
[373302770,1752936642236,-151.0,0.00019178,2]
[373302773,1752936642246,-151.0,0.00019178,2]
[373302775,1752936642256,-151.0,0.00019178,2]
[373302777,1752936642266,-151.0,0.00019178,2]
[373302778,1752936642276,-151.0,0.00019178,2]
[373302780,1752936642286,-151.0,0.00019178,2]
[373302782,1752936642295,-151.0,0.00019178,2]
[373302784,1752936642305,-151.0,0.00019178,2]
[373302786,1752936642315,-151.0,0.00019178,2]
[373302788,1752936642326,-151.0,0.00019178,2]
[373302790,1752936642336,-151.0,0.00019178,2]
[373302793,1752936642346,-151.0,0.00019178,2]
[373302795,1752936642357,-151.0,0.00019178,2]
[373302797,1752936642366,-151.0,0.00019178,2]
[373302798,1752936642376,-154.821553,0.00019178,2]
[373302801,1752936642388,-151.0,0.00019178,2]
[373302803,1752936642397,-166.209519,0.00019178,2]
[373302805,1752936642407,-480.0,0.00019178,2]
[373302806,1752936642417,-480.0,0.00019178,2]
[373302809,1752936642426,-460.0,0.00019178,2]
[373302810,1752936642436,-480.0,0.00019178,2]
[373302812,1752936642446,-151.0,0.00019178,2]
[373302814,1752936642456,-151.0,0.00019178,2]
[373302816,1752936642466,-151.0,0.00019178,2]
[373302818,1752936642476,-151.0,0.00019178,2]
[373302820,1752936642485,-151.0,0.00019178,2]
[373302822,1752936642495,-480.0,0.00019178,2]
[373302824,1752936642505,-151.0,0.00019178,2]
[373302826,1752936642514,-151.0,0.00019178,2]
[373302828,1752936642523,-156.022943,0.00019178,2]
[373302832,1752936642533,-480.0,0.00019178,2]
[373302835,1752936642543,-480.0,0.00019178,2]
[373302838,1752936642552,-480.0,0.00019178,2]
[373302841,1752936642561,-480.0,0.00019178,2]
[373302843,1752936642571,-153.649212,0.00019178,2]
[373302845,1752936642581,-480.0,0.00019178,2]
[373302847,1752936642590,-460.0,0.00019178,2]
[373302849,1752936642600,-302.37428042,0.00019178,2]
[373302851,1752936642609,-480.0,0.00019178,2]
[373302854,1752936642619,-480.0,0.00019178,2]
[373302857,1752936642628,-480.0,0.00019178,2]
[373302859,1752936642638,-151.0,0.00019178,2]
[373302860,1752936642647,-151.0,0.00019178,2]
[373302862,1752936642657,-151.0,0.00019178,2]
[373302864,1752936642667,-151.0,0.00019178,2]
[373302866,1752936642677,-151.0,0.00019178,2]
[373302868,1752936642686,-480.0,0.00019178,2]
[373302870,1752936642696,-151.0,0.00019178,2]
[373302872,1752936642706,-151.0,0.00019178,2]
[373302876,1752936642715,-151.0,0.00019178,2]
[373302878,1752936642725,-151.0,0.00019178,2]
[373302880,1752936642735,-151.0,0.00019178,2]
[373302881,1752936642744,-440.0,0.00019178,2]
[373302884,1752936642755,-480.0,0.00019178,2]
[373302886,1752936642764,-480.0,0.00019178,2]
[373302887,1752936642774,-538.01042294,0.00019178,2]
[373302889,1752936642783,-480.0,0.00019178,2]
[373302891,1752936642794,-151.0,0.00019178,2]
[373302893,1752936642804,-151.0,0.00019178,2]
[373302895,1752936642814,-151.0,0.00019178,2]
[373302897,1752936642823,-151.0,0.00019178,2]
[373302899,1752936642834,-151.0,0.00019178,2]
[373302902,1752936642843,-480.0,0.00019178,2]
[373302903,1752936642853,-480.0,0.00019178,2]
[373302905,1752936642863,-480.0,0.00019178,2]
[373302908,1752936642873,-496.64283428,0.00019178,2]
[373302910,1752936642884,-480.0,0.00019178,2]
[373302912,1752936642894,-480.0,0.00019178,2]
[373302913,1752936642903,-489.93226005,0.00019178,2]
[373302915,1752936642913,-460.0,0.00019178,2]
[373302917,1752936642922,-625.66997139,0.00019178,2]
[373302919,1752936642932,-460.0,0.00019178,2]
[373302922,1752936642942,-480.0,0.00019178,2]
[373302924,1752936642951,-460.0,0.00019178,2]
[373302926,1752936642961,-465.98292573,0.00019178,2]
[373302928,1752936642971,-460.0,0.00019178,2]
[373302930,1752936642981,-480.0,0.00019178,2]
[373302932,1752936642990,-460.0,0.00019178,2]
[373302934,1752936642999,-480.0,0.00019178,2]
[373302935,1752936643009,-460.0,0.00019178,2]
[373302938,1752936643019,-460.0,0.00019178,2]
[373302939,1752936643028,-460.0,0.00019178,2]
[373302941,1752936643038,-460.0,0.00019178,2]
[373302943,1752936643047,-460.0,0.00019178,2]
[373302945,1752936643057,-464.40391418,0.00019178,2]
[373302947,1752936643067,-381.65886028,0.00019178,2]
[373302949,1752936643076,-480.0,0.00019178,2]
[373302951,1752936643086,-151.0,0.00019178,2]
[373302953,1752936643095,-480.0,0.00019178,2]
[373302955,1752936643105,-460.0,0.00019178,2]
[373302957,1752936643115,-480.0,0.00019178,2]
[373302959,1752936643124,-263.386056,0.00019178,2]
[373302961,1752936643137,-480.0,0.00019178,2]
[373302963,1752936643147,-460.0,0.00019178,2]
[373302965,1752936643156,-480.0,0.00019178,2]
[373302967,1752936643165,-480.0,0.00019178,2]
[373302969,1752936643174,-480.0,0.00019178,2]
[373302971,1752936643184,-480.0,0.00019178,2]
[373302973,1752936643198,-480.0,0.00019178,2]
[373302975,1752936643208,-491.23308112,0.00019178,2]
[373302977,1752936643217,-460.0,0.00019178,2]
[373302979,1752936643227,-480.0,0.00019178,2]
[373302981,1752936643238,-493.76560389,0.00019178,2]
[373302983,1752936643248,-461.04922108,0.00019178,2]
[373302985,1752936643258,-464.51973884,0.00019178,2]
[373302987,1752936643267,-460.0,0.00019178,2]
[373302989,1752936643277,-153.567314,0.00019178,2]
[373302991,1752936643287,-153.567314,0.00019178,2]
[373302993,1752936643296,-153.567314,0.00019178,2]
[373302995,1752936643306,-153.567314,0.00019178,2]
[373302996,1752936643316,-153.567314,0.00019178,2]
[373302999,1752936643327,-469.14277966,0.00019178,2]
[373303000,1752936643337,-569.26876128,0.00019178,2]
[373303002,1752936643347,-153.567314,0.00019178,2]
[373303005,1752936643357,-153.567314,0.00019178,2]
[373303006,1752936643366,-153.567314,0.00019178,2]
[373303008,1752936643375,-153.567314,0.00019178,2]
[373303010,1752936643387,-460.0,0.00019178,2]
[373303012,1752936643397,-153.567314,0.00019178,2]
[373303014,1752936643407,-151.0,0.00019178,2]
[373303016,1752936643416,-151.0,0.00019178,2]
[373303018,1752936643425,-251.183341,0.00019178,2]
[373303020,1752936643435,-460.0,0.00019178,2]
[373303022,1752936643445,-151.0,0.00019178,2]
[373303024,1752936643455,-151.0,0.00019178,2]
[373303026,1752936643464,-480.0,0.00019178,2]
[373303028,1752936643474,-151.0,0.00019178,2]
[373303030,1752936643483,-236.821644,0.00019178,2]
[373303032,1752936643493,-151.0,0.00019178,2]
[373303034,1752936643503,-460.0,0.00019178,2]
[373303036,1752936643512,-151.0,0.00019178,2]
[373303038,1752936643522,-480.0,0.00019178,2]
[373303040,1752936643531,-151.0,0.00019178,2]